Cogmind - Beta 12 @@@ ROGUE MODE // 2024.02.14 @ 15:49:33 Player: Treadwheel Result: Destroyed by as-25800 with Assembled F-torch Performance ------------- Evolutions (0) 0 Regions Visited (2) 400 Robots Destroyed (21) 105 Value Destroyed (475) 475 Prototype IDs (0) 0 Alien Tech Used (0) 0 Bonus (0) 0 TOTAL SCORE: 980 Bonus ------- None Cogmind --------- Core Integrity 0/250 Matter 285/300 Energy 203/250 System Corruption 3% Temperature Warm (100) Movement Walking (260) Ox2 Location -10/Mines Parts ------- > --- POWER (1) -------- Ion Engine > --- PROPULSION (2) --- Aluminum Leg > --- UTILITY (2) ------ Large Storage Unit Signal Interpreter > --- WEAPON (2) ------- (None) > --- INVENTORY (15) --- Ion Engine Ion Engine Ion Engine Light Treads Aluminum Leg Aluminum Leg Aluminum Leg Aluminum Leg Sensor Array Signal Interpreter Seismic Detector Targeting Computer Light Assault Rifle Mining Laser Peak State ------------ > --- POWER ------------ Ion Engine > --- PROPULSION ------- Aluminum Leg Aluminum Leg > --- UTILITY ---------- Large Storage Unit Visual Processing Unit > --- WEAPON ----------- Beam Cannon Assault Rifle > --- INVENTORY -------- Ion Engine Ion Engine Light Treads Aluminum Leg Aluminum Leg Small Storage Unit Sensor Array Seismic Detector Light Assault Rifle Mining Laser [Rating: 9] Favorites ----------- Power Ion Engine Engine Ion Engine Propulsion Aluminum Leg Treads Light Treads Leg Aluminum Leg Utility Large Storage Unit Device Sensor Array Storage Large Storage Unit Processor Signal Interpreter Weapon Beam Cannon Energy Gun Medium Laser Energy Cannon Beam Cannon Ballistic Gun Assault Rifle Launcher Grenade Launcher Build | -11 -10 -10 ------- Run | Jun Mat Min Slots Evolved . | . . . Power . | . . . Propulsion . | . . . Utility . | . . . Weapon . | . . . Parts Attached 26 | 8 17 1 Power 4 | 2 2 . Engine 4 | 2 2 . Core . | . . . Reactor . | . . . Propulsion 7 | 2 5 . Treads 2 | 2 . . Leg 5 | . 5 . Wheel . | . . . Hover . | . . . Flight . | . . . Utility 9 | 2 7 . Device 5 | 1 4 . Storage 2 | 1 1 . Processor 2 | . 2 . Hackware . | . . . Protection . | . . . Artifact . | . . . Weapon 6 | 2 3 1 Energy Gun 1 | 1 . . Energy Cannon 1 | . 1 . Ballistic Gun 3 | 1 2 . Ballistic Cannon . | . . . Launcher 1 | . . 1 Special Weapon . | . . . Impact Weapon . | . . . Slashing Weapon . | . . . Piercing Weapon . | . . . Special Melee Weapon . | . . . Unidentified Prototypes . | . . . Parts Lost 7 | . 3 4 Power . | . . . Propulsion 2 | . 1 1 Utility . | . . . Weapon 5 | . 2 3 Highest Loss Streak 4 | . 1 4 To Critical Strikes . | . . . Average Slot Usage (%) 100 | . 100 100 Engine 14 | . 14 14 Treads 10 | . 10 . Leg 17 | . 17 28 Device 8 | . 8 . Storage 14 | . 14 14 Processor 5 | . 5 14 Energy Gun 2 | . 2 . Energy Cannon 10 | . 10 14 Ballistic Gun 15 | . 15 14 Naked Turns . | . . . Heaviest Build 31 | 14 31 29 Greatest Support 40 | 40 40 20 Greatest Overweight (x) 3 | 3 1 1 Average Overweight (x) . | . . 1 Largest Inventory Capacity 15 | 8 15 15 Average Capacity 13 | 7 13 15 Most Carried 15 | 8 15 15 Average Carried 10 | 4 11 14 Final Capacity 15 | 8 15 15 Final Carried 15 | 7 15 14 Class Distribution -------------------- 100% | Mutant Dominant Class ---------------- Mutant | -10/Materials Mutant | -10/Mines Resources | -11 -10 -10 ----------- Run | Jun Mat Min Matter Collected 606 | 208 398 . Remotely . | . . . Salvage Created 693 | 11 655 27 Parts 42 | 3 39 . Haulers Intercepted . | . . . Recyclers Shooed 1 | . 1 . Parts Field Recycled . | . . . Retrieved Matter . | . . . Parts Self-Destructed . | . . . Prevented . | . . . Kills | -11 -10 -10 ------- Run | Jun Mat Min Combat Hostiles Destroyed 21 | . 16 5 Guns 9 | . 9 . Cannons 7 | . 7 . AOE 5 | . . 5 Classes Destroyed 6 | 1 4 1 Tunneler 2 | 1 1 . Recycler 1 | . 1 . Watcher 2 | . 2 . Swarmer 6 | . 6 . Grunt 10 | . 10 . Assembled 5 | . . 5 Best Kill Streak 5 | 1 5 5 Combat Bots Only 5 | . 3 5 Max Kills in Single Turn 5 | 1 1 5 Gunslinging . | . . . Exploded 5 | . . 5 Melee . | . . . Uniques/NPCs Destroyed . | . . . Combat | -11 -10 -10 -------- Run | Jun Mat Min Damage Taken 1441 | . 1071 370 Core 257 | . 172 85 Absorbed by Shields . | . . . Core Remaining (%) 100 | 100 . . Volleys Fired 70 | 1 67 2 Largest 2 | 2 2 2 Hottest 90 | 70 80 90 Shots Fired 139 | 2 134 3 Gun 94 | 2 92 . Cannon 43 | . 42 1 Launcher 2 | . . 2 Special . | . . . Kinetic 72 | 1 71 . Thermal 65 | 1 63 1 Explosive 2 | . . 2 Electromagnetic . | . . . Robot Hit Streak 9 | 1 9 . Robot Miss Streak 7 | . 7 3 Penetration Max . | . . . Secondary Targets 1 | . 1 . Max Gunslinging Chain 1 | . 1 . Shots Hit Robots 76 | 1 75 . Core Hits 45 | 1 32 12 Critical Kills . | . . . Critical Parts Destroyed 1 | . 1 . Critical Strikes 1 | . 1 . Destroy 1 | . 1 . Melee Attacks . | . . . Impact . | . . . Slashing . | . . . Piercing . | . . . Sneak Attacks . | . . . Combat Hostiles . | . . . Follow-up Attacks . | . . . Damage Inflicted 1186 | 13 992 181 Guns 591 | 13 578 . Cannons 429 | . 412 17 Explosions 164 | . . 164 Melee . | . . . Ramming 2 | . 2 . Kinetic 426 | . 426 . Thermal 594 | 13 564 17 Explosive 164 | . . 164 Electromagnetic . | . . . Impact . | . . . Slashing . | . . . Piercing . | . . . Highest Corruption 3 | . 3 3 Average Corruption 2 | . 2 3 Corruption Purged . | . . . Corruption Blocked . | . . . Effects 20 | . 19 1 Message Errors 4 | . 4 . Matter Fused 4 | . 4 . Heat Flow Errors 3 | . 3 . Energy Discharges 4 | . 3 1 Parts Rejected 1 | . 1 . Data Loss (minor) 2 | . 2 . Data Loss (major) 1 | . 1 . Misfires 1 | . 1 . Overload Shots . | . . . Overflow Damage . | . . . Projectiles . | . . . Explosions . | . . . Melee . | . . . Knockbacks . | . . . Impact . | . . . Kinetic . | . . . Secondary . | . . . Self-Inflicted Damage . | . . . Shots . | . . . Rammed 1 | . 1 . Targets Rammed 1 | . 1 . Kicked . | . . . Crushed . | . . . Highest Temperature 294 | 30 294 90 Average Temperature 88 | 19 89 57 Received Heat Transfer 451 | . 351 100 Effects 1 | . 1 . Energy Bleed 1 | . 1 . Siege Activations . | . . . Robots Corrupted . | . . . Combat Hostiles . | . . . Parts Fried . | . . . Impact Corruptions . | . . . Robots Melted . | . . . Combat Hostiles . | . . . Parts Melted 4 | . 4 . Heat Transferred 1406 | 37 1332 37 Parts Sabotaged . | . . . Parts Stolen . | . . . Parts Stripped . | . . . Power Chain Reactions . | . . . Missiles Intercepted . | . . . Alert | -11 -10 -10 ------- Run | Jun Mat Min Peak Influence 196 | 5 196 42 Initial 27 | . 3 27 Average 68 | 1 74 29 Maximum Alert Level . | . . . Low Security (%) 100 | 100 100 100 Level 1 . | . . . Level 2 . | . . . Level 3 . | . . . Level 4 . | . . . Level 5 . | . . . High Security . | . . . Max Security . | . . . Squads Dispatched 4 | . 4 . Investigation 2 | . 2 . Extermination . | . . . Reinforcement 2 | . 2 . Assault . | . . . Garrison . | . . . Intercept . | . . . Searches Triggered . | . . . Construction Impeded . | . . . Haulers Reinforced . | . . . Active Scanning Responses . | . . . Cargo Convoy Interrupts . | . . . Stealth | -11 -10 -10 --------- Run | Jun Mat Min Distress Signals 1 | . 1 . Communications Jammed . | . . . Distress Signals . | . . . Times Spotted 50 | . 27 23 Peak Tracking Total 23 | . 5 23 Tactical Retreats 1 | . 1 . Traps | -11 -10 -10 ------- Run | Jun Mat Min Traps Triggered 3 | . 3 . Indirectly . | . . . Trap Hack Attempts . | . . . Triggered . | . . . Disarmed . | . . . Reprogrammed . | . . . Reused . | . . . Traps Extracted . | . . . Installed . | . . . Triggered . | . . . Machines | -11 -10 -10 ---------- Run | Jun Mat Min Machines Disabled 1 | . 1 . Max in Single Turn 1 | . 1 . Machines Repaired . | . . . Machines Sabotaged . | . . . Overloaded Fab Kills . | . . . Hacking | -11 -10 -10 --------- Run | Jun Mat Min Machines Accessed 7 | . 7 . Terminals 6 | . 6 . Fabricators . | . . . Repair Stations . | . . . Recycling Units 1 | . 1 . Scanalyzers . | . . . Garrison Access . | . . . Total Hacks 15 | . 15 . Successful 6 | . 6 . Failed 9 | . 9 . Catastrophic 4 | . 4 . Database Lockouts . | . . . Manual 3 | . 3 . Terminals 12 | . 12 . Fabricators . | . . . Repair Stations . | . . . Recycling Units 3 | . 3 . Scanalyzers . | . . . Garrison Access . | . . . Terminal Hacks 5 | . 5 . Locate Traps 1 | . 1 . Maintenance Status 1 | . 1 . Assault Status 1 | . 1 . Hauler Manifests 1 | . 1 . Registered Components 1 | . 1 . Fabricator Hacks . | . . . Repair Station Hacks . | . . . Recycling Unit Hacks . | . . . Scanalyzer . | . . . Garrison Access Hacks . | . . . Unauthorized Hacks 1 | . 1 . Terminals . | . . . Fabricators . | . . . Repair Stations . | . . . Recycling Units 1 | . 1 . Reject 1 | . 1 . Scanalyzers . | . . . Garrison Access . | . . . Data Cores Recovered . | . . . Used . | . . . Hacking Detections 7 | . 7 . Full Trace Events 3 | . 3 . Feedback Events . | . . . Feedback Blocked . | . . . Robot Schematics Acquired . | . . . Robots Built . | . . . Authchips . | . . . Time . | . . . Total Robot Build Rating . | . . . Part Schematics Acquired . | . . . Parts Built . | . . . Authchips . | . . . Time . | . . . Total Part Build Rating . | . . . Parts Repaired . | . . . Time . | . . . Parts Recycled . | . . . Recycled Matter . | . . . Retrieved Matter . | . . . Retrieved Components . | . . . Parts Scanalyzed . | . . . Part Schematics Acquired . | . . . Parts Damaged . | . . . Bothacking | -11 -10 -10 ------------ Run | Jun Mat Min Used RIF Installer . | . . . Robots Hacked . | . . . Non-combat . | . . . Combat . | . . . Robot Hacks Applied . | . . . Relay Couplers Released . | . . . Fabnet Peak Effective % . | . . . Robots Rewired . | . . . Allies Hacked . | . . . Hacks Repelled . | . . . Allies | -11 -10 -10 -------- Run | Jun Mat Min Total Allies . | . . . Largest Group . | . . . Highest-Rated Group . | . . . Highest-Rated Ally . | . . . Total Orders . | . . . Ally Attacks . | . . . Total Damage . | . . . Kills . | . . . Allies Corrupted . | . . . Allies Melted . | . . . Intel | -11 -10 -10 ------- Run | Jun Mat Min Robot Analysis Total . | . . . Derelict Logs Recovered . | . . . Drone Launches . | . . . Drone Recoveries . | . . . Exploration | -11 -10 -10 ------------- Run | Jun Mat Min Turns Passed 1575 | 113 1454 8 Spaces Moved 720 | 59 660 1 Core 8 | 8 . . Treads 337 | 51 286 . Legs 375 | . 374 1 Wheels . | . . . Hover . | . . . Flight . | . . . Fastest Speed 50 | 50 160 190 Average Speed 175 | 152 177 190 Slowest Speed 240 | 200 240 190 Overloaded Moves . | . . . Propulsion Burnouts . | . . . Robots Hopped . | . . . Cave-ins Triggered . | . . . Exploration Rate (%) 30 | 5 78 7 Regions Visited 2 Branch Regions 1 Pre-discovered Areas . | . . . Known Exits Taken 1 | . 1 . Unknown Exits Taken 1 | 1 . . Scrap Searched . | . . . Spaces Dug . | . . . Terrain Destroyed 13 | . . 13 Melee . | . . . Projectile . | . . . AOE 13 | . . 13 Terrain Rammed . | . . . Walls Destroyed . | . . . Machines Disabled . | . . . Actions | -11 -10 -10 --------- Run | Jun Mat Min Total 898 | 77 817 4 Wait 53 | 3 50 . Move 718 | 58 659 1 Hop . | . . . Pick Up 20 | 7 13 . Fast Attach 7 | 6 1 . Attach 6 | 1 4 1 Detach 1 | . 1 . Swap 13 | 1 12 . Drop 9 | . 9 . Fire 70 | 1 67 2 Melee . | . . . Ram . | . . . Kick . | . . . Crush 1 | . 1 . Escape Stasis . | . . . Rewire . | . . . Trap . | . . . Miscellaneous . | . . . Route ------- -11/Junkyard -10/Materials (discovered 4 exits: *Mat x3 / *Min) -10/Mines History --------- Turn | Location | Event 7 | -11/Junkyard | Discovered new exit (range 16) 114 | -11/Junkyard | Entered Materials 246 | -10/Materials | Discovered new exit (range 16) 311 | -10/Materials | Build established: Mutant 577 | -10/Materials | Discovered new exit (range 6) 647 | -10/Materials | Discovered new exit (range 3) 705 | -10/Materials | Core integrity fell below 50% 1044 | -10/Materials | Identified exit to Materials 1278 | -10/Materials | Discovered exit to Materials (range 3) 1566 | -10/Materials | Identified exit to Mines 1568 | -10/Materials | Entered Mines 1569 | -10/Mines | Assembled infested the area 1574 | -10/Mines | Core integrity fell below 20% 1576 | -10/Mines | Destroyed by as-25800 with Assembled F-torch Last Messages --------------- 01492_ Dropped Sensor Array. 01493_ Acquired Lgt. Assault Rifle. 01566_ EXIT=IDENTIFIED: MINES LOCATION=MINES GOAL=ESCAPE Something is scanning the area. 01569_ ALERT: Infestation in the mines, dispatching Demolisher response squad. [Achievement: Hunted] 01570_ Lgt. Assault Rifle destroyed. 01570_ S-10 Pest destroyed. 01571_ as-71865 destroyed. 01571_ as-04699 destroyed. 01571_ as-22301 destroyed. 01571_ as-69917 destroyed. 01571_ as-19620 destroyed. 01572_ Beam Cannon destroyed. 01574_ Aluminum Leg destroyed. 01575_ System corrupted: Energy discharge (-57). 01575_ The unstable cave ceiling collapses. 01575_ Grenade Launcher destroyed. Map ----- +----------------------------------------------------+ | | | | | | | | | | | | | | | ???????????????????????????????????????????????? | | ???????????????????????????????????????????????? | | ???????????????????????????????????????????????? | | ???????????????????????????????????????????????? | | ???????????????????????????????????????????????? | | ???????????????????????????????????????????????? | | ???????????????????????????????????????????????? | | ????????????????####???????????????????????????? | | ????????????????# #####??????????????????????? | | ????????????????? ##????????????????????? | | ?????????????????? ##???????????????????? | | ??????????????????# ##??????????????????? | | ?????????????????## ##?????????????????? | | ????????????????## s #?????????????????? | | ????????????????# % #?????????????????? | | ?????????????????? = s #??????????????????? | | ????????????????????# #???????????????????? | | ?????????????????????# #????????????????????? | | ?????????????????????###a@#????????????????????? | | ???????????????????????#aaa ???????????????????? | | ???????????????????????#a ?????????????????? | | ??????????????????????? aaa #????????????????? | | ?????????????????????? a %a #????????????????? | | ????????????????????? a